[Event "Vienna Chess Open 2019"]
[Site "Vienna"]
[Date "2019.08.18"]
[Round "2.7"]
[White "Randazzo, Adrian"]
[Black "Gumularz, Szymon"]
[Result "1/2-1/2"]
[ECO "A05"]
[WhiteElo "2254"]
[BlackElo "2501"]
[Annotator "ChessBase"]
[PlyCount "100"]
[EventDate "2019.08.17"]
[EventType "swiss"]
[EventCountry "AUT"]
[SourceTitle "playchess.com"]
[Source "ChessBase"]
[SourceQuality "1"]
[TimeControl "40/5400+30:1800+30"]

1. Nf3 {[%emt 0:00:00]} Nf6 {[%emt 0:00:00]} 2. c4 {[%emt 0:00:06]} e6 {[%emt 0:00:39]} 3. e3 {[%emt 0:01:27]} b6 {[%emt 0:01:22]} 4. b3 {[%emt 0:00:28]} Bb7 {[%emt 0:00:13]} 5. Bb2 {[%emt 0:00:36]} g6 {[%emt 0:02:24]} 6. Be2 {[%emt 0:01:55]} Bg7 {[%emt 0:00:04]} 7. O-O {[%emt 0:00:23]} O-O {[%emt 0:00:05]} 8. d3 {[%emt 0:03:58]} d6 {[%emt 0:02:35]} 9. Nbd2 {[%emt 0:00:50]} Nbd7 {[%emt 0:00:05]} 10. Qc2 {[%emt 0:00:54]} Qe7 {[%emt 0:00:13]} 11. d4 {[%emt 0:20:15]} c5 {[%emt 0:00:32]} 12. Rfe1 {[%emt 0:03:53]} Rac8 {[%emt 0:00:48]} 13. Rac1 {[%emt 0:00:51]} Nh5 {[%emt 0:07:24]} 14. dxc5 {[%emt 0:01:16]} bxc5 {[%emt 0:01:02]} 15. Bxg7 {[%emt 0:00:27]} Nxg7 {[%emt 0:00:36]} 16. Rcd1 {[%emt 0:10:55]} f5 {[%emt 0:01:59]} 17. e4 {[%emt 0:02:28]} e5 {[%emt 0:01:38]} 18. Bf1 {[%emt 0:03:11]} Ne6 {[%emt 0:03:24]} 19. Bd3 {[%emt 0:05:47]} Qf6 {[%emt 0:07:24]} 20. Nb1 {[%emt 0:01:03]} Nb8 {[%emt 0:23:41]} 21. Nc3 {[%emt 0:00:45]} Nc6 {[%emt 0:02:34]} 22. Nd5 {[%emt 0:00:49]} Qf7 {[%emt 0:00:11]} 23. Qb2 {[%emt 0:09:13]} Qg7 {[%emt 0:01:20]} 24. Bb1 {[%emt 0:02:51]} Ncd4 {[%emt 0:10:45]} 25. Nxd4 {[%emt 0:01:42]} Nxd4 {[%emt 0:00:05]} 26. Nc3 {[%emt 0:02:13]} Bc6 {[%emt 0:06:51]} 27. b4 {[%emt 0:12:38]} cxb4 {[%emt 0:01:15]} 28. Qxb4 {[%emt 0:00:16]} Qf6 {[%emt 0:00:11]} 29. f3 {[%emt 0:03:00]} fxe4 {[%emt 0:19:03]} 30. Bxe4 {[%emt 0:02:29]} Kh8 {[%emt 0:00:23]} 31. Nd5 {[%emt 0:02:11]} Bxd5 {[%emt 0:00:10]} 32. cxd5 {[%emt 0:01:02]} Rb8 {[%emt 0:00:15]} 33. Qa3 {[%emt 0:00:28]} Rfc8 {[%emt 0:01:11]} 34. Rb1 {[%emt 0:01:25]} Rxb1 {[%emt 0:00:29]} 35. Rxb1 {[%emt 0:00:07]} Qg5 {[%emt 0:01:09]} 36. Rd1 {[%emt 0:03:11]} Ne2+ {[%emt 0:04:45]} 37. Kh1 {[%emt 0:02:26]} Rc1 {[%emt 0:00:49]} 38. Rxc1 {[%emt 0:00:38]} Qxc1+ {[%emt 0:00:05]} 39. Qxc1 {[%emt 0:00:02]} Nxc1 {[%emt 0:00:06]} 40. Bb1 {[%emt 0:00:41]} Ne2 {[%emt 0:00:20]} 41. Bd3 {[%emt 0:30:32]} Nc3 {[%emt 0:31:46]} 42. Bc4 {[%emt 0:00:33]} Kg7 {[%emt 0:00:00]} 43. Kg1 {[%emt 0:00:00]} Kf6 {[%emt 0:00:00]} 44. Kf2 {[%emt 0:00:00]} g5 {[%emt 0:00:00]} 45. Ke3 {[%emt 0:00:00]} h5 {[%emt 0:00:00]} 46. g3 {[%emt 0:00:00]} Kf5 {[%emt 0:00:00]} 47. Bd3+ {[%emt 0:00:00]} Kf6 {[%emt 0:00:00]} 48. Bc4 {[%emt 0:00:00]} h4 {[%emt 0:00:00]} 49. Bb3 {[%emt 0:00:00]} Nb5 {[%emt 0:00:00]} 50. Ke4 {[%emt 0:00:00]} Nc3+ {[%emt 0:00:00]} 1/2-1/2

[Event "Vienna Chess Open 2019"]
[Site "Vienna"]
[Date "2019.08.18"]
[Round "2.7"]
[White "Bannink, Bernard"]
[Black "Barp, Alberto"]
[Result "0-1"]
[ECO "D04"]
[WhiteElo "2210"]
[BlackElo "2411"]
[Annotator "NA"]
[PlyCount "62"]
[EventDate "2019.08.17"]
[EventType "swiss"]
[EventCountry "AUT"]
[SourceTitle "playchess.com"]
[Source "ChessBase"]
[SourceQuality "1"]
[TimeControl "40/5400+30:1800+30"]

1. d4 {[%emt 0:00:14]} d5 {[%emt 0:00:00]} 2. Nf3 {[%emt 0:00:11]} Nf6 {[%emt 0:00:00]} 3. e3 {[%emt 0:00:04]} c5 {[%emt 0:00:00]} 4. c4 {[%emt 0:00:05]} e6 {[%emt 0:00:30]} 5. Nc3 {[%emt 0:00:04]} Nc6 {[%emt 0:00:51]} 6. a3 {[%emt 0:00:08]} a6 {[%emt 0:04:00]} 7. dxc5 {[%emt 0:00:19]} Bxc5 {[%emt 0:00:14]} 8. b4 {[%emt 0:00:08]} Bd6 {[%emt 0:02:00]} 9. Bb2 {[%emt 0:00:14]} O-O {[%emt 0:00:11]} 10. cxd5 {[%emt 0:05:43]} exd5 {[%emt 0:00:13]} 11. Be2 {[%emt 0:00:50]} Be6 {[%emt 0:14:42]} 12. Nd4 {[%emt 0:03:03]} Ne5 {[%emt 0:02:08]} 13. f4 {[%emt 0:12:33]} Nc4 {[%emt 0:04:19]} 14. Bxc4 {[%emt 0:00:19]} dxc4 {[%emt 0:00:04]} 15. Nxe6 {[%emt 0:00:21]} fxe6 {[%emt 0:00:06]} 16. O-O {[%emt 0:09:31]} b5 {[%emt 0:03:56]} 17. e4 {[%emt 0:02:54]} Bc7 {[%emt 0:04:09]} 18. Qe2 {[%emt 0:29:25]} Bb6+ {[%emt 0:03:42]} 19. Kh1 {[%emt 0:00:07]} Qd3 {[%emt 0:00:05]} 20. e5 {[%emt 0:14:07]} Qxe2 {[%emt 0:01:07]} 21. Nxe2 {[%emt 0:00:04]} Nd5 {[%emt 0:02:23]} 22. g3 {[%emt 0:04:59]} Ne3 {[%emt 0:05:03]} 23. Rf3 {[%emt 0:00:04]} Rad8 {[%emt 0:00:47]} 24. Bd4 {[%emt 0:00:15]} Rxd4 {[%emt 0:03:30]} 25. Rxe3 {[%emt 0:01:02]} Rdxf4 {[%emt 0:00:50]} 26. Nxf4 {[%emt 0:00:19]} Bxe3 {[%emt 0:00:05]} 27. Nxe6 {[%emt 0:00:14]} Rf5 {[%emt 0:07:31]} 28. Nc7 {[%emt 0:02:11]} Rxe5 {[%emt 0:00:10]} 29. Nxa6 {[%emt 0:00:08]} c3 {[%emt 0:01:01]} 30. Ra2 {[%emt 0:00:05]} Rd5 {[%emt 0:00:57]} 31. Nc7 {[%emt 0:04:23]} Rd2 {[%emt 0:00:48]} 0-1

[Event "Vienna Chess Open 2019"]
[Site "Vienna"]
[Date "2019.08.18"]
[Round "2.8"]
[White "Hertneck, Gerald"]
[Black "Rubil, Marko"]
[Result "1-0"]
[ECO "D18"]
[WhiteElo "2495"]
[BlackElo "2248"]
[Annotator "ChessBase"]
[PlyCount "165"]
[EventDate "2019.08.17"]
[EventType "swiss"]
[EventCountry "AUT"]
[SourceTitle "playchess.com"]
[Source "ChessBase"]
[SourceQuality "1"]
[TimeControl "40/5400+30:1800+30"]

1. d4 {[%emt 0:00:00]} d5 {[%emt 0:00:36]} 2. Nf3 {[%emt 0:00:00]} Nf6 {[%emt 0:00:08]} 3. c4 {[%emt 0:00:00]} c6 {[%emt 0:00:31]} 4. Nc3 {[%emt 0:00:00]} dxc4 {[%emt 0:00:18]} 5. a4 {[%emt 0:00:00]} Bf5 {[%emt 0:00:05]} 6. Nh4 {[%emt 0:01:24]} Bc8 {[%emt 0:03:39]} 7. Nf3 {[%emt 0:03:51]} Bf5 {[%emt 0:00:09]} 8. e3 {[%emt 0:00:04]} e6 {[%emt 0:04:04]} 9. Bxc4 {[%emt 0:00:08]} Bb4 {[%emt 0:00:11]} 10. O-O {[%emt 0:00:07]} Nbd7 {[%emt 0:00:42]} 11. Nh4 {[%emt 0:00:18]} Bg6 {[%emt 0:00:12]} 12. h3 {[%emt 0:04:10]} Bh5 {[%emt 0:07:08]} 13. g4 {[%emt 0:01:31]} Nxg4 {[%emt 0:07:47]} 14. hxg4 {[%emt 0:00:19]} Qxh4 {[%emt 0:00:11]} 15. gxh5 {[%emt 0:00:07]} Bd6 {[%emt 0:00:18]} 16. Re1 {[%emt 0:13:08]} Qh3 {[%emt 0:11:20]} 17. f4 {[%emt 0:00:23]} g5 {[%emt 0:01:52]} 18. Bf1 {[%emt 0:02:08]} Qg3+ {[%emt 0:07:17]} 19. Bg2 {[%emt 0:00:41]} Nf6 {[%emt 0:02:27]} 20. Kf1 {[%emt 0:08:14]} Qh4 {[%emt 0:18:42]} 21. Qf3 {[%emt 0:24:24]} g4 {[%emt 0:10:22]} 22. Qf2 {[%emt 0:03:09]} g3 {[%emt 0:01:21]} 23. Qg1 {[%emt 0:05:11]} Ng4 {[%emt 0:03:26]} 24. Ke2 {[%emt 0:01:59]} Nh2 {[%emt 0:07:06]} 25. Kd2 {[%emt 0:02:48]} Qxh5 {[%emt 0:01:21]} 26. Qh1 {[%emt 0:01:30]} O-O-O {[%emt 0:03:22]} 27. Kc2 {[%emt 0:00:17]} Qg6+ {[%emt 0:02:27]} 28. Be4 {[%emt 0:07:03]} f5 {[%emt 0:00:03]} 29. Bd3 {[%emt 0:02:40]} h5 {[%emt 0:00:35]} 30. Bd2 {[%emt 0:00:05]} h4 {[%emt 0:00:29]} 31. Re2 {[%emt 0:00:39]} Ng4 {[%emt 0:00:18]} 32. Rg1 {[%emt 0:00:11]} Qh5 {[%emt 0:01:46]} 33. Be1 {[%emt 0:00:18]} Kb8 {[%emt 0:02:16]} 34. Qg2 {[%emt 0:03:36]} Be7 {[%emt 0:02:57]} 35. Rh1 {[%emt 0:00:19]} Qf7 {[%emt 0:00:19]} 36. Bc4 {[%emt 0:02:08]} Qf6 {[%emt 0:00:07]} 37. Kb3 {[%emt 0:00:27]} Rh6 {[%emt 0:01:24]} 38. Qf3 {[%emt 0:00:40]} Bf8 {[%emt 0:00:39]} 39. Ka2 {[%emt 0:00:59]} Bb4 {[%emt 0:00:34]} 40. Bb3 {[%emt 0:00:47]} Bf8 {[%emt 0:00:20]} 41. Ne4 {[%emt 0:30:26]} Nh2 {[%emt 0:12:26]} 42. Nxf6 {[%emt 0:00:00]} Nxf3 {[%emt 0:00:25]} 43. Bxg3 {[%emt 0:00:00]} Bg7 {[%emt 0:15:15]} 44. Bf2 {[%emt 0:00:00]} h3 {[%emt 0:01:28]} 45. Bg3 {[%emt 0:00:00]} Bxf6 {[%emt 0:03:08]} 46. Rf2 {[%emt 0:00:00]} Nxd4 {[%emt 0:00:50]} 47. exd4 {[%emt 0:00:00]} Bxd4 {[%emt 0:00:31]} 48. Rfh2 {[%emt 0:00:00]} Bg7 {[%emt 0:00:31]} 49. Bc2 {[%emt 0:00:00]} Rdh8 {[%emt 0:00:21]} 50. Kb1 {[%emt 0:00:00]} Kc7 {[%emt 0:00:10]} 51. Bd3 {[%emt 0:00:00]} Rd8 {[%emt 0:00:11]} 52. Bc4 {[%emt 0:00:00]} Rd4 {[%emt 0:00:33]} 53. b3 {[%emt 0:00:00]} a6 {[%emt 0:01:18]} 54. a5 {[%emt 0:00:00]} Rg6 {[%emt 0:00:26]} 55. Rxh3 {[%emt 0:00:00]} Rd2 {[%emt 0:00:10]} 56. R3h2 {[%emt 0:00:00]} Rxh2 {[%emt 0:00:54]} 57. Bxh2 {[%emt 0:00:00]} Bc3 {[%emt 0:00:15]} 58. Bg1 {[%emt 0:00:00]} Bxa5 {[%emt 0:00:07]} 59. Bd4 {[%emt 0:00:00]} b5 {[%emt 0:00:40]} 60. Be2 {[%emt 0:00:00]} Bd2 {[%emt 0:00:34]} 61. Rh7+ {[%emt 0:00:00]} Kd6 {[%emt 0:00:17]} 62. Be5+ {[%emt 0:00:00]} Kc5 {[%emt 0:00:06]} 63. Kc2 {[%emt 0:00:00]} Be1 {[%emt 0:00:54]} 64. Rd7 {[%emt 0:00:00]} Bf2 {[%emt 0:00:35]} 65. Bd6+ {[%emt 0:00:00]} Kb6 {[%emt 0:00:25]} 66. Bc7+ {[%emt 0:00:00]} Kc5 {[%emt 0:00:00]} 67. Ba5 {[%emt 0:00:00]} b4 {[%emt 0:00:20]} 68. Rb7 {[%emt 0:00:00]} Be1 {[%emt 0:00:26]} 69. Bxa6 {[%emt 0:00:00]} Rg2+ {[%emt 0:01:08]} 70. Kd1 {[%emt 0:00:00]} Bc3 {[%emt 0:00:23]} 71. Bc4 {[%emt 0:00:00]} Rg1+ {[%emt 0:01:17]} 72. Ke2 {[%emt 0:00:00]} Rg2+ {[%emt 0:00:33]} 73. Kf3 {[%emt 0:00:00]} Ra2 {[%emt 0:00:31]} 74. Bb6+ {[%emt 0:00:00]} Kd6 {[%emt 0:00:06]} 75. Bc7+ {[%emt 0:00:00]} Kc5 {[%emt 0:00:05]} 76. Bxe6 {[%emt 0:00:00]} Rb2 {[%emt 0:01:18]} 77. Bd8 {[%emt 0:00:00]} Kd6 {[%emt 0:00:27]} 78. Bc4 {[%emt 0:00:00]} c5 {[%emt 0:00:29]} 79. Rf7 {[%emt 0:00:00]} Bd4 {[%emt 0:00:12]} 80. Be7+ {[%emt 0:00:00]} Kc6 {[%emt 0:00:13]} 81. Bf6 {[%emt 0:00:00]} Rf2+ {[%emt 0:00:30]} 82. Kg3 {[%emt 0:00:00]} Be3 {[%emt 0:00:22]} 83. Be5 {[%emt 0:00:00]} 1-0

[Event "Vienna Chess Open 2019"]
[Site "Vienna"]
[Date "2019.08.18"]
[Round "2.8"]
[White "Pfreundt, Jakob"]
[Black "Namyslo, Holger"]
[Result "1-0"]
[ECO "A06"]
[WhiteElo "2410"]
[BlackElo "2199"]
[Annotator "NA"]
[PlyCount "89"]
[EventDate "2019.08.17"]
[EventType "swiss"]
[EventCountry "AUT"]
[SourceTitle "playchess.com"]
[Source "ChessBase"]
[SourceQuality "1"]
[TimeControl "40/5400+30:1800+30"]

1. Nf3 {[%emt 0:00:00]} d5 {[%emt 0:00:00]} 2. g3 {[%emt 0:00:41]} Nf6 {[%emt 0:00:13]} 3. Bg2 {[%emt 0:00:11]} e6 {[%emt 0:00:12]} 4. d4 {[%emt 0:02:12]} Be7 {[%emt 0:00:21]} 5. c4 {[%emt 0:00:18]} O-O {[%emt 0:00:29]} 6. Nc3 {[%emt 0:01:42]} dxc4 {[%emt 0:02:26]} 7. Ne5 {[%emt 0:00:12]} Qd6 {[%emt 0:07:18]} 8. Nxc4 {[%emt 0:01:19]} Qa6 {[%emt 0:00:08]} 9. b3 {[%emt 0:01:13]} Rd8 {[%emt 0:03:05]} 10. a4 {[%emt 0:06:08]} Bb4 {[%emt 0:03:29]} 11. Bb2 {[%emt 0:03:41]} Nd5 {[%emt 0:09:16]} 12. Qc2 {[%emt 0:03:09]} Nc6 {[%emt 0:02:10]} 13. Rd1 {[%emt 0:11:29]} Na5 {[%emt 0:06:10]} 14. Ne5 {[%emt 0:18:47]} b6 {[%emt 0:04:59]} 15. O-O {[%emt 0:00:59]} Bxc3 {[%emt 0:02:15]} 16. Bxc3 {[%emt 0:00:10]} Bb7 {[%emt 0:00:39]} 17. b4 {[%emt 0:05:48]} Nxc3 {[%emt 0:01:46]} 18. Qxc3 {[%emt 0:00:12]} Bxg2 {[%emt 0:01:21]} 19. Kxg2 {[%emt 0:00:08]} f6 {[%emt 0:06:27]} 20. Nf3 {[%emt 0:06:19]} Nb7 {[%emt 0:04:21]} 21. Qxc7 {[%emt 0:05:47]} Rac8 {[%emt 0:08:18]} 22. Qe7 {[%emt 0:00:14]} Re8 {[%emt 0:00:14]} 23. Qd7 {[%emt 0:00:16]} Rcd8 {[%emt 0:00:31]} 24. b5 {[%emt 0:02:15]} Rxd7 {[%emt 0:00:48]} 25. bxa6 {[%emt 0:00:06]} Na5 {[%emt 0:04:17]} 26. Rc1 {[%emt 0:02:47]} g5 {[%emt 0:02:27]} 27. g4 {[%emt 0:04:01]} Ree7 {[%emt 0:02:41]} 28. Rc8+ {[%emt 0:02:30]} Kg7 {[%emt 0:00:39]} 29. Rfc1 {[%emt 0:00:27]} h5 {[%emt 0:01:06]} 30. h3 {[%emt 0:00:18]} hxg4 {[%emt 0:00:05]} 31. hxg4 {[%emt 0:00:06]} Kg6 {[%emt 0:06:45]} 32. e3 {[%emt 0:05:12]} Rh7 {[%emt 0:01:14]} 33. Kg3 {[%emt 0:02:00]} Nb3 {[%emt 0:03:09]} 34. R1c6 {[%emt 0:01:04]} Kf7 {[%emt 0:03:35]} 35. Rb8 {[%emt 0:02:33]} Na5 {[%emt 0:00:21]} 36. Rcc8 {[%emt 0:00:08]} Ke7 {[%emt 0:02:36]} 37. e4 {[%emt 0:01:49]} Kd6 {[%emt 0:03:28]} 38. e5+ {[%emt 0:06:04]} fxe5 {[%emt 0:00:58]} 39. Nxe5 {[%emt 0:04:57]} Rc7 {[%emt 0:02:43]} 40. Rd8+ {[%emt 0:00:11]} Ke7 {[%emt 0:00:05]} 41. Re8+ {[%emt 0:30:43]} Kf6 {[%emt 0:30:13]} 42. Rf8+ {[%emt 0:00:35]} Ke7 {[%emt 0:03:15]} 43. Rbe8+ {[%emt 0:00:21]} Kd6 {[%emt 0:00:15]} 44. Rd8+ {[%emt 0:00:07]} Ke7 {[%emt 0:00:04]} 45. Ng6# 1-0

[Event "Vienna Chess Open 2019"]
[Site "Vienna"]
[Date "2019.08.18"]
[Round "2.8"]
[White "Pieper, Thomas"]
[Black "Haldorsen, Benjamin"]
[Result "1/2-1/2"]
[ECO "C11"]
[WhiteElo "2234"]
[BlackElo "2452"]
[Annotator "ChessBase"]
[PlyCount "65"]
[EventDate "2019.08.17"]
[EventType "swiss"]
[EventCountry "AUT"]
[SourceTitle "playchess.com"]
[Source "ChessBase"]
[SourceQuality "1"]
[TimeControl "40/5400+30:1800+30"]

1. e4 {[%emt 0:00:00]} e6 {[%emt 0:00:00]} 2. d4 {[%emt 0:00:00]} d5 {[%emt 0:00:14]} 3. Nc3 {[%emt 0:00:00]} Nf6 {[%emt 0:00:28]} 4. e5 {[%emt 0:00:14]} Nfd7 {[%emt 0:00:19]} 5. f4 {[%emt 0:00:25]} c5 {[%emt 0:00:39]} 6. Nf3 {[%emt 0:00:15]} Nc6 {[%emt 0:00:02]} 7. Be3 {[%emt 0:00:19]} Be7 {[%emt 0:00:05]} 8. Qd2 {[%emt 0:00:59]} b6 {[%emt 0:01:40]} 9. Be2 {[%emt 0:09:23]} O-O {[%emt 0:00:22]} 10. O-O {[%emt 0:00:18]} f5 {[%emt 0:00:35]} 11. dxc5 {[%emt 0:04:16]} Nxc5 {[%emt 0:03:20]} 12. Nd4 {[%emt 0:01:11]} Nxd4 {[%emt 0:02:37]} 13. Bxd4 {[%emt 0:00:34]} Ba6 {[%emt 0:04:07]} 14. Bxc5 {[%emt 0:21:52]} Bxc5+ {[%emt 0:00:02]} 15. Kh1 {[%emt 0:00:08]} Bxe2 {[%emt 0:07:03]} 16. Nxe2 {[%emt 0:00:26]} b5 {[%emt 0:05:10]} 17. a4 {[%emt 0:08:45]} a6 {[%emt 0:03:28]} 18. b4 {[%emt 0:17:15]} Bb6 {[%emt 0:11:00]} 19. axb5 {[%emt 0:08:29]} axb5 {[%emt 0:01:21]} 20. Qd3 {[%emt 0:00:31]} Qd7 {[%emt 0:01:54]} 21. Nc3 {[%emt 0:00:34]} Rxa1 {[%emt 0:19:40]} 22. Rxa1 {[%emt 0:00:02]} Rc8 {[%emt 0:00:07]} 23. Nxb5 {[%emt 0:03:24]} Rc4 {[%emt 0:02:58]} 24. Nd6 {[%emt 0:00:22]} Rxb4 {[%emt 0:09:02]} 25. Qa3 {[%emt 0:04:40]} Qa7 {[%emt 0:03:04]} 26. Qc3 {[%emt 0:02:49]} h6 {[%emt 0:00:01]} 27. g3 {[%emt 0:05:11]} Ra4 {[%emt 0:01:26]} 28. Qc8+ {[%emt 0:00:55]} Kh7 {[%emt 0:00:01]} 29. Rxa4 {[%emt 0:00:10]} Qxa4 {[%emt 0:00:08]} 30. Kg2 {[%emt 0:07:38]} Qd4 {[%emt 0:04:06]} 31. Ne8 {[%emt 0:00:50]} Qd2+ {[%emt 0:13:45]} 32. Kh3 {[%emt 0:00:25]} Bg1 {[%emt 0:00:06]} 33. Nf6+ 1/2-1/2

[Event "Vienna Chess Open 2019"]
[Site "Vienna"]
[Date "2019.08.18"]
[Round "2.9"]
[White "Valsecchi, Alessio"]
[Black "Ly, Dominik"]
[Result "1/2-1/2"]
[ECO "D35"]
[WhiteElo "2494"]
[BlackElo "2245"]
[Annotator "ChessBase"]
[PlyCount "61"]
[EventDate "2019.08.17"]
[EventType "swiss"]
[EventCountry "AUT"]
[SourceTitle "playchess.com"]
[Source "ChessBase"]
[SourceQuality "1"]
[TimeControl "40/5400+30:1800+30"]

1. c4 {[%emt 0:00:00]} Nf6 {[%emt 0:00:00]} 2. Nc3 {[%emt 0:01:07]} e6 {[%emt 0:00:33]} 3. d4 {[%emt 0:00:46]} d5 {[%emt 0:00:08]} 4. cxd5 {[%emt 0:01:02]} exd5 {[%emt 0:00:07]} 5. Bg5 {[%emt 0:00:07]} c6 {[%emt 0:00:30]} 6. e3 {[%emt 0:00:45]} Be7 {[%emt 0:02:12]} 7. Bd3 {[%emt 0:00:17]} O-O {[%emt 0:01:04]} 8. Qc2 {[%emt 0:00:46]} Nbd7 {[%emt 0:00:18]} 9. Nf3 {[%emt 0:00:27]} Re8 {[%emt 0:00:36]} 10. O-O {[%emt 0:00:44]} h6 {[%emt 0:03:13]} 11. Bf4 {[%emt 0:02:09]} Nf8 {[%emt 0:10:12]} 12. h3 {[%emt 0:00:57]} Bd6 {[%emt 0:00:19]} 13. Ne5 {[%emt 0:12:54]} Qe7 {[%emt 0:04:59]} 14. Rae1 {[%emt 0:07:18]} N6d7 {[%emt 0:10:35]} 15. e4 {[%emt 0:01:31]} Ne6 {[%emt 0:01:10]} 16. Be3 {[%emt 0:10:01]} Nxd4 {[%emt 0:16:11]} 17. Bxd4 {[%emt 0:00:16]} Nxe5 {[%emt 0:00:12]} 18. f4 {[%emt 0:08:54]} Bc5 {[%emt 0:05:43]} 19. Bf2 {[%emt 0:18:19]} Bxf2+ {[%emt 0:00:56]} 20. Rxf2 {[%emt 0:00:06]} Nxd3 {[%emt 0:01:30]} 21. Qxd3 {[%emt 0:00:02]} Bf5 {[%emt 0:13:34]} 22. Rfe2 {[%emt 0:00:18]} Qc5+ {[%emt 0:00:38]} 23. Kh1 {[%emt 0:01:06]} dxe4 {[%emt 0:00:27]} 24. Nxe4 {[%emt 0:00:18]} Bxe4 {[%emt 0:01:01]} 25. Rxe4 {[%emt 0:00:06]} Rxe4 {[%emt 0:04:11]} 26. Qxe4 {[%emt 0:00:03]} Rd8 {[%emt 0:06:11]} 27. Qe7 {[%emt 0:01:47]} Qd4 {[%emt 0:02:08]} 28. Qxb7 {[%emt 0:02:55]} Qxf4 {[%emt 0:00:12]} 29. Qxa7 {[%emt 0:01:10]} Rd2 {[%emt 0:01:34]} 30. Qa8+ {[%emt 0:02:17]} Kh7 {[%emt 0:00:09]} 31. Qxc6 {[%emt 0:00:23]} 1/2-1/2

[Event "Vienna Chess Open 2019"]
[Site "Vienna"]
[Date "2019.08.18"]
[Round "2.9"]
[White "Bakhmatsky, Vladislav"]
[Black "Brustkern, Juergen"]
[Result "1-0"]
[ECO "C76"]
[WhiteElo "2442"]
[BlackElo "2217"]
[Annotator "NA"]
[PlyCount "75"]
[EventDate "2019.08.17"]
[EventType "swiss"]
[EventCountry "AUT"]
[SourceTitle "playchess.com"]
[Source "ChessBase"]
[SourceQuality "1"]
[TimeControl "40/5400+30:1800+30"]

1. e4 {[%emt 0:00:00]} e5 {[%emt 0:01:05]} 2. Nf3 {[%emt 0:00:00]} Nc6 {[%emt 0:00:05]} 3. Bb5 {[%emt 0:00:42]} a6 {[%emt 0:01:12]} 4. Ba4 {[%emt 0:00:04]} d6 {[%emt 0:00:09]} 5. c3 {[%emt 0:01:12]} Bd7 {[%emt 0:00:30]} 6. d4 {[%emt 0:00:42]} g6 {[%emt 0:00:28]} 7. O-O {[%emt 0:01:26]} Bg7 {[%emt 0:00:06]} 8. Re1 {[%emt 0:01:37]} b5 {[%emt 0:02:51]} 9. Bc2 {[%emt 0:15:02]} Nf6 {[%emt 0:04:14]} 10. h3 {[%emt 0:03:59]} O-O {[%emt 0:00:20]} 11. Be3 {[%emt 0:11:44]} Re8 {[%emt 0:04:44]} 12. Nbd2 {[%emt 0:01:04]} Rb8 {[%emt 0:05:58]} 13. a3 {[%emt 0:13:02]} a5 {[%emt 0:07:43]} 14. d5 {[%emt 0:08:05]} Ne7 {[%emt 0:00:17]} 15. a4 {[%emt 0:00:02]} c6 {[%emt 0:15:00]} 16. dxc6 {[%emt 0:03:03]} Bxc6 {[%emt 0:01:52]} 17. axb5 {[%emt 0:00:45]} Rxb5 {[%emt 0:00:44]} 18. Ra2 {[%emt 0:11:52]} Qb8 {[%emt 0:03:03]} 19. b3 {[%emt 0:03:19]} d5 {[%emt 0:01:48]} 20. c4 {[%emt 0:00:47]} dxc4 {[%emt 0:01:40]} 21. bxc4 {[%emt 0:00:01]} Rb2 {[%emt 0:00:30]} 22. Rxa5 {[%emt 0:02:05]} Qb4 {[%emt 0:02:54]} 23. Ra6 {[%emt 0:01:43]} Nd7 {[%emt 0:05:58]} 24. Ba4 {[%emt 0:02:50]} Rc8 {[%emt 0:02:38]} 25. Bxc6 {[%emt 0:03:06]} Nxc6 {[%emt 0:00:26]} 26. Ra4 {[%emt 0:00:57]} Qe7 {[%emt 0:06:31]} 27. Nb3 {[%emt 0:07:03]} Rb8 {[%emt 0:06:16]} 28. Na5 {[%emt 0:00:13]} Nd8 {[%emt 0:05:43]} 29. Ra1 {[%emt 0:01:14]} Rc8 {[%emt 0:04:07]} 30. Bc1 {[%emt 0:03:32]} Rbb8 {[%emt 0:01:01]} 31. Ba3 {[%emt 0:00:32]} Nc5 {[%emt 0:00:52]} 32. Nb3 {[%emt 0:01:20]} Rxb3 {[%emt 0:06:17]} 33. Bxc5 {[%emt 0:00:18]} Qb7 {[%emt 0:00:06]} 34. Ra7 {[%emt 0:01:35]} Qb8 {[%emt 0:00:09]} 35. Rd7 {[%emt 0:00:18]} Ne6 {[%emt 0:00:31]} 36. Bd6 {[%emt 0:00:34]} Qb6 {[%emt 0:00:37]} 37. Bxe5 {[%emt 0:00:02]} Rxc4 {[%emt 0:02:38]} 38. Nd2 {[%emt 0:00:45]} 1-0

[Event "Vienna Chess Open 2019"]
[Site "Vienna"]
[Date "2019.08.18"]
[Round "2.9"]
[White "Pitschka, Claus"]
[Black "Gschnitzer, Adrian"]
[Result "0-1"]
[ECO "A45"]
[WhiteElo "2205"]
[BlackElo "2410"]
[Annotator "NA"]
[PlyCount "54"]
[EventDate "2019.08.17"]
[EventType "swiss"]
[EventCountry "AUT"]
[SourceTitle "playchess.com"]
[Source "ChessBase"]
[SourceQuality "1"]
[TimeControl "40/5400+30:1800+30"]

1. d4 {[%emt 0:00:00]} Nf6 {[%emt 0:00:53]} 2. Bf4 {[%emt 0:00:00]} c5 {[%emt 0:00:10]} 3. e3 {[%emt 0:00:00]} cxd4 {[%emt 0:01:19]} 4. exd4 {[%emt 0:00:01]} Qb6 {[%emt 0:00:06]} 5. Na3 {[%emt 0:01:15]} a6 {[%emt 0:01:10]} 6. Nc4 {[%emt 0:00:53]} Qd8 {[%emt 0:01:55]} 7. c3 {[%emt 0:07:51]} b5 8. Ne3 {[%emt 0:05:04]} e6 {[%emt 0:04:50]} 9. a4 {[%emt 0:08:39]} b4 {[%emt 0:00:56]} 10. c4 {[%emt 0:00:05]} Bb7 {[%emt 0:02:24]} 11. Be2 {[%emt 0:01:01]} Be7 {[%emt 0:12:47]} 12. Bf3 {[%emt 0:00:58]} d5 {[%emt 0:08:59]} 13. c5 {[%emt 0:03:04]} Nc6 {[%emt 0:01:22]} 14. Ne2 {[%emt 0:00:50]} O-O {[%emt 0:05:37]} 15. O-O {[%emt 0:01:38]} Ne8 16. h3 f5 {[%emt 0:04:33]} 17. Rc1 {[%emt 0:22:40]} Bf6 {[%emt 0:00:48]} 18. b3 {[%emt 0:04:00]} a5 {[%emt 0:01:58]} 19. Re1 {[%emt 0:03:04]} Qd7 {[%emt 0:04:43]} 20. Nc2 {[%emt 0:04:28]} g5 {[%emt 0:02:15]} 21. Bh2 {[%emt 0:00:05]} Bh8 {[%emt 0:10:35]} 22. Qd2 {[%emt 0:03:28]} h6 {[%emt 0:00:51]} 23. Kh1 {[%emt 0:03:31]} Nf6 {[%emt 0:03:20]} 24. Ng1 {[%emt 0:05:30]} g4 {[%emt 0:01:38]} 25. Be2 {[%emt 0:00:05]} Ne4 {[%emt 0:00:30]} 26. Qe3 {[%emt 0:00:06]} e5 {[%emt 0:03:17]} 27. Bd3 {[%emt 0:05:50]} f4 {[%emt 0:03:48]} 0-1